bitfinex-derivatives/quotes_SOLF0:USTF0_20250716
["timestamp","ask_amount","ask_price","bid_price","bid_amount"]
[1752699613279,3.28,174.75,174.72,4.14012971]
[1752699613676,3.28,174.75,174.74,4.14012971]
[1752699613880,9.0,174.75,174.74,4.14012971]
[1752699614880,9.0,174.75,174.74,7.45012971]
[1752699616376,3.28,174.75,174.74,7.45012971]
[1752699616990,0.03920992,174.76,174.75,3.31]
[1752699617376,3.31920992,174.76,174.75,3.31]
[1752699617579,3.28,174.75,174.74,7.45012971]
[1752699617884,0.03920992,174.76,174.75,3.31]
[1752699618490,3.28,174.81,174.78,7.45012971]
[1752699618784,5.7183,174.8,174.78,7.45012971]
[1752699618992,3.28,174.79,174.78,7.45012971]
[1752699619288,8.9986,174.79,174.78,3.31]
[1752699619591,8.9986,174.79,174.78,7.45012971]
[1752699620078,16.13632666,174.84,174.79,3.31]
[1752699620390,3.28,174.84,174.83,7.45012971]
[1752699620787,12.85632666,174.9,174.83,7.45012971]
[1752699620984,3.28,174.89,174.86,3.31]
[1752699621291,3.28,174.87,174.86,3.31]
[1752699621587,3.28,174.86,174.82,4.14012971]
[1752699621979,3.28,174.86,174.83,4.14012971]
[1752699622181,3.28,174.85,174.84,4.14012971]
[1752699622383,3.28,174.84,174.81,4.14012971]
[1752699622591,3.28,174.84,174.77,3.31]
[1752699623092,3.28,174.83,174.77,4.14012971]
[1752699623392,3.28,174.76,174.71,176.02]
[1752699623593,3.28,174.75,174.74,3.31]
[1752699623794,9.0006,174.73,174.72,3.31]
[1752699624092,3.28,174.73,174.72,3.31]
[1752699624887,3.28,174.8,174.72,3.31]
[1752699625086,3.28,174.8,174.74,3.31]
[1752699625293,3.28,174.76,174.74,3.31]
[1752699625497,3.28,174.76,174.75,3.31]
[1752699625885,3.28,174.78,174.75,4.14012971]
[1752699626089,3.28,174.78,174.77,3.31]
[1752699626394,650.27475414,174.88,174.73,7.45012971]
[1752699626395,3.28,174.79,174.73,7.45012971]
[1752699626887,16.13632666,174.83,174.78,3.31]
[1752699627098,3.28,174.86,174.83,3.31]
[1752699627294,8.9964,174.86,174.85,3.31]
[1752699627497,8.9964,174.86,174.81,7.45012971]
[1752699627498,3.28,174.86,174.81,7.45012971]
[1752699627886,3.28,174.85,174.83,4.14012971]
[1752699628196,3.28,174.87,174.85,3.31]
[1752699628404,3.28,174.87,174.85,7.45012971]
[1752699628591,5.7164,174.86,174.85,7.45012971]
[1752699629384,3.28,174.89,174.86,3.31]
[1752699629595,3.28,174.88,174.87,7.45012971]
[1752699629793,8.996,174.88,174.87,7.45012971]
[1752699630187,4.14012971,174.91,174.84,3.31]
[1752699630388,3.28,174.9,174.82,4.14012971]
[1752699630600,3.28,174.9,174.82,3.31]
[1752699630800,3.28,174.9,174.83,4.14012971]
[1752699631292,3.28,174.9,174.82,3.31]
[1752699631493,3.28,174.89,174.83,4.14012971]
[1752699631698,3.28,174.89,174.8,3.31]
[1752699631899,4.14012971,174.88,174.8,7.45012971]
[1752699632100,8.998,174.81,174.8,4.14012971]
[1752699632792,8.998,174.81,174.76,176.0]
[1752699632995,5.7183,174.8,174.79,7.45012971]
[1752699633205,8.9683,174.8,174.76,176.0]
[1752699633384,3.25,174.79,174.78,7.31012971]
[1752699634386,5.7183,174.8,174.78,7.31012971]
[1752699634585,8.9683,174.8,174.79,3.17]
[1752699639903,8.9693,174.77,174.76,7.31012971]
[1752699641503,5.7193,174.77,174.76,7.31012971]
[1752699641702,3.25,174.79,174.76,4.14012971]
[1752699641910,3.25,174.78,174.77,3.17]
[1752699642701,8.969,174.78,174.77,3.17]
[1752699643609,3.25,174.78,174.74,7.31012971]
[1752699643803,3.25,174.78,174.74,4.14012971]
[1752699644203,5.72,174.75,174.74,4.14012971]
[1752699644505,8.97,174.75,174.74,4.14012971]
[1752699644706,5.72,174.75,174.74,7.31012971]
[1752699645311,5.7199,174.76,174.75,3.17]
[1752699645609,5.7199,174.76,174.75,7.31012971]
[1752699646011,5.7195,174.77,174.76,3.17]
[1752699646506,3.25,174.79,174.72,4.14012971]
[1752699647110,3.25,174.79,174.74,4.14012971]
[1752699647302,3.25,174.79,174.75,3.17]
[1752699647501,5.7206,174.74,174.73,7.31012971]
[1752699647905,8.9706,174.74,174.73,7.31012971]
[1752699648211,5.7201,174.75,174.74,3.17]
[1752699648715,8.9703,174.74,174.73,4.14012971]
[1752699649008,3.25,174.76,174.73,4.14012971]
[1752699649209,8.9696,174.76,174.75,3.17]
[1752699649511,8.9696,174.76,174.75,7.31012971]
[1752699650313,8.9703,174.74,174.73,7.31012971]
[1752699650515,3.25,174.74,174.73,7.31012971]
[1752699650805,3.25,174.79,174.74,3.17]
[1752699651010,3.25,174.78,174.77,7.31012971]
[1752699651212,8.9691,174.78,174.77,7.31012971]
[1752699652913,8.9691,174.78,174.77,4.14012971]
[1752699653408,5.7196,174.76,174.75,7.31012971]
[1752699653614,8.9696,174.76,174.75,7.31012971]
[1752699655008,8.9696,174.76,174.75,3.17]
[1752699657023,8.9696,174.76,174.75,7.31012971]
[1752699659024,5.7203,174.74,174.73,3.17]
[1752699659224,8.9703,174.74,174.73,7.31012971]
[1752699659523,5.7203,174.74,174.73,7.31012971]
[1752699660028,8.97,174.75,174.74,3.17]
[1752699660412,3.25,174.78,174.74,3.17]
[1752699660620,3.25,174.78,174.77,7.31012971]
[1752699661630,3.25,174.78,174.73,4.14012971]
[1752699661931,3.25,174.78,174.73,7.31012971]
[1752699662320,3.25,174.78,174.74,3.17]
[1752699663028,5.7202,174.75,174.74,3.17]
[1752699663239,9.0602,174.75,174.74,3.17]
[1752699666541,5.7208,174.73,174.72,7.52012971]
[1752699666729,9.0608,174.73,174.72,7.52012971]
[1752699667624,9.0608,174.73,174.72,3.38]
[1752699668744,9.0609,174.72,174.71,4.14012971]
[1752699668934,9.0609,174.72,174.71,7.52012971]
[1752699670038,5.7209,174.72,174.71,7.52012971]
[1752699671836,5.7207,174.73,174.72,3.38]
[1752699672032,5.7207,174.73,174.72,7.52012971]
[1752699672536,9.0607,174.73,174.72,7.52012971]
[1752699672736,9.0607,174.73,174.72,4.14012971]
[1752699673038,9.0607,174.73,174.68,175.88]
[1752699673339,5.7219,174.69,174.68,179.26]
[1752699674440,5.7219,174.69,174.68,183.40012971]
[1752699675147,5.7217,174.7,174.68,183.40012971]
[1752699675342,5.7217,174.7,174.69,4.14012971]
[1752699675541,5.7217,174.7,174.69,7.52012971]
[1752699676352,9.0617,174.7,174.69,7.52012971]
[1752699679043,5.7217,174.7,174.69,7.52012971]
[1752699680549,9.0615,174.71,174.69,7.52012971]
[1752699680758,5.7215,174.71,174.7,3.38]
[1752699680957,9.0615,174.71,174.7,3.38]
[1752699681446,5.7215,174.71,174.7,3.38]
[1752699681650,3.34,174.78,174.7,3.38]
[1752699681848,3.34,174.78,174.75,4.14012971]
[1752699682051,3.34,174.78,174.75,7.52012971]
[1752699682250,5.7196,174.76,174.75,7.52012971]
[1752699682548,9.0596,174.76,174.75,7.52012971]
[1752699683853,9.0596,174.76,174.75,3.38]
[1752699684057,9.0596,174.76,174.75,7.52012971]
[1752699695352,3.34,174.76,174.75,7.52012971]
[1752699698363,3.37,174.83,174.76,3.39]
[1752699698571,3.37,174.83,174.81,7.53012971]
[1752699698956,3.37,174.83,174.79,3.39]
[1752699699155,3.37,174.82,174.76,4.14012971]
[1752699699562,3.37,174.82,174.78,4.14012971]
[1752699699764,3.37,174.82,174.8,4.14012971]
[1752699699963,5.718,174.81,174.8,4.14012971]
[1752699700165,9.088,174.81,174.8,4.14012971]
[1752699700373,3.37,174.81,174.8,4.14012971]
[1752699702269,9.088,174.81,174.8,4.14012971]
[1752699703157,3.37,174.81,174.8,4.14012971]
[1752699703963,9.088,174.81,174.8,4.14012971]
[1752699706476,3.37,174.81,174.8,7.53012971]
[1752699708073,9.088,174.81,174.8,7.53012971]
[1752699708778,3.37,174.81,174.8,7.53012971]
[1752699709180,3.37,174.81,174.78,7.53012971]
[1752699709381,3.37,174.81,174.79,3.39]
[1752699710080,5.7183,174.8,174.79,3.39]
[1752699710272,3.37,174.81,174.78,3.39]
[1752699710477,3.37,174.81,174.76,7.53012971]
[1752699710678,3.37,174.81,174.76,4.14012971]
[1752699711080,3.37,174.76,174.75,7.53012971]
[1752699712773,9.0896,174.76,174.75,7.53012971]
[1752699712981,3.37,174.76,174.73,4.14012971]
[1752699713583,9.0903,174.74,174.73,4.14012971]
[1752699713975,9.0903,174.74,174.72,3.39]
[1752699714169,9.0906,174.73,174.72,7.53012971]
[1752699714581,9.0906,174.73,174.72,3.39]
[1752699714974,9.0906,174.73,174.72,7.53012971]
[1752699716372,3.37,174.73,174.72,7.53012971]
[1752699717185,9.0904,174.74,174.73,3.39]
[1752699717578,3.37,174.74,174.73,3.39]
[1752699717788,9.09,174.75,174.73,3.39]
[1752699717983,3.37,174.77,174.74,7.53012971]
[1752699718285,9.0894,174.77,174.76,7.53012971]
[1752699718986,3.37,174.77,174.73,4.14012971]
[1752699719381,5.7202,174.75,174.73,4.14012971]
[1752699719683,3.37,174.74,174.73,4.14012971]
[1752699720683,9.0903,174.74,174.73,4.14012971]
[1752699720982,9.0903,174.74,174.73,7.53012971]
[1752699721187,5.7192,174.78,174.74,3.39]
[1752699721387,9.0892,174.78,174.77,3.39]
[1752699721587,3.37,174.83,174.76,4.14012971]
[1752699721789,5.7192,174.78,174.76,4.14012971]
[1752699721984,3.37,174.77,174.76,7.53012971]
[1752699724287,3.14,174.78,174.77,3.2]
[1752699724990,8.859,174.78,174.77,3.2]
[1752699725191,3.14,174.78,174.75,7.34012971]
[1752699725581,5.7195,174.77,174.76,3.2]
[1752699725785,8.8595,174.77,174.76,3.2]
[1752699733596,5.7196,174.76,174.75,4.14012971]
[1752699733793,8.8596,174.76,174.75,7.34012971]
[1752699738591,8.8596,174.76,174.75,3.2]
[1752699738799,8.8596,174.76,174.75,7.34012971]
[1752699741599,5.7209,174.72,174.71,239.0]
[1752699741785,3.14,174.72,174.71,4.14012971]
[1752699742294,8.861,174.72,174.71,7.34012971]
[1752699742496,3.14,174.72,174.71,7.34012971]
[1752699742694,5.7208,174.73,174.71,7.34012971]
[1752699742896,5.7208,174.73,174.72,7.34012971]
[1752699743285,8.8608,174.73,174.72,7.34012971]
[1752699743696,16.03467587,174.82,174.72,7.34012971]
[1752699743896,3.14,174.81,174.8,7.34012971]
[1752699744599,8.858,174.81,174.8,7.34012971]
[1752699746000,5.7187,174.79,174.76,174.6]
[1752699746202,8.8587,174.79,174.78,3.2]
[1752699746404,8.8587,174.79,174.78,7.34012971]
[1752699746799,8.8587,174.79,174.78,3.2]
[1752699747018,8.8587,174.79,174.78,7.34012971]
[1752699747505,3.14,174.77,174.76,174.6]
[1752699747694,3.14,174.77,174.76,178.74012971]
[1752699748191,3.14,174.77,174.76,181.94012971]
[1752699748809,8.8593,174.77,174.76,181.94012971]
[1752699749008,8.8593,174.77,174.76,4.14012971]
[1752699749306,3.14,174.77,174.74,7.34012971]
[1752699749807,5.72,174.75,174.74,7.34012971]
[1752699749995,8.86,174.75,174.74,7.34012971]
[1752699750602,3.14,174.75,174.74,7.34012971]
[1752699751112,5.7197,174.76,174.75,3.2]
[1752699751809,8.8597,174.76,174.75,3.2]
[1752699752308,5.7197,174.76,174.75,3.2]
[1752699753199,5.7194,174.77,174.75,3.2]
[1752699753402,5.7194,174.77,174.76,7.55012971]
[1752699755906,8.9794,174.77,174.76,3.41]
[1752699756105,8.9794,174.77,174.76,7.55012971]
[1752699756707,5.7194,174.77,174.76,7.55012971]
[1752699757010,8.9794,174.77,174.76,7.55012971]
[1752699757615,5.7194,174.77,174.76,7.55012971]
[1752699758213,5.7191,174.78,174.76,7.55012971]
[1752699758401,3.26,174.79,174.77,3.41]
[1752699758606,15.57312971,174.86,174.78,4.14012971]
[1752699758807,3.26,174.8,174.79,3.41]
[1752699759198,15.57312971,174.86,174.79,3.41]
[1752699759398,3.26,174.85,174.79,3.41]
[1752699759808,8.9783,174.8,174.79,3.41]
[1752699760708,8.9783,174.8,174.78,4.14012971]
[1752699760908,3.26,174.79,174.78,7.55012971]
[1752699761599,5.7183,174.81,174.8,3.41]
[1752699761809,8.9783,174.81,174.8,3.41]
[1752699762998,5.7183,174.8,174.79,4.14012971]
[1752699763206,8.9783,174.8,174.79,3.41]
[1752699764014,3.26,174.78,174.77,7.55012971]
[1752699765013,5.7184,174.8,174.78,3.41]
[1752699765218,8.9784,174.8,174.79,7.55012971]
[1752699765407,8.9784,174.8,174.79,3.41]
[1752699765610,11.433,174.86,174.74,5.7202]
[1752699765611,8.9787,174.79,174.78,7.55012971]
[1752699765808,8.9787,174.79,174.78,3.41]
[1752699766408,5.7187,174.79,174.78,3.41]
[1752699767116,8.9787,174.79,174.78,3.41]
[1752699769817,5.7197,174.76,174.74,239.0]
[1752699770019,8.9797,174.76,174.75,7.55012971]
[1752699770217,27.46767587,174.86,174.75,7.55012971]
[1752699770423,3.26,174.84,174.77,3.41]
[1752699770615,3.26,174.84,174.77,7.55012971]
[1752699771522,3.26,174.84,174.77,3.41]
[1752699771715,5.7189,174.79,174.77,7.55012971]
[1752699772021,8.9789,174.79,174.78,3.41]
[1752699774328,3.26,174.77,174.76,4.14012971]
[1752699774620,3.26,174.77,174.76,7.55012971]
[1752699775619,8.9791,174.78,174.77,3.41]
[1752699777632,5.7191,174.78,174.77,3.41]
[1752699778136,8.9788,174.79,174.77,3.41]
[1752699778326,5.7188,174.79,174.78,7.55012971]
[1752699778530,8.9788,174.79,174.78,7.55012971]
[1752699778932,8.9788,174.79,174.78,3.41]
[1752699781535,8.979,174.78,174.77,7.55012971]
[1752699782630,5.719,174.78,174.77,7.55012971]
[1752699782828,8.979,174.78,174.77,7.55012971]
[1752699783835,3.2,174.74,174.73,224.64312659]
[1752699784037,3.2,174.74,174.73,217.27007895]
[1752699784236,3.2,174.74,174.71,3.25]
[1752699784438,8.9209,174.72,174.71,3.25]
[1752699785044,8.9213,174.71,174.7,7.37473414]
[1752699785247,8.9213,174.71,174.7,3.25]
[1752699788655,5.7219,174.69,174.68,181.27473414]
[1752699788853,8.9219,174.69,174.68,181.27473414]
[1752699790048,12.82870183,174.75,174.68,178.02473414]
[1752699790251,3.2,174.74,174.69,3.25]
[1752699790650,8.9219,174.7,174.69,3.25]
[1752699791657,3.2,174.69,174.67,214.76817107]
[1752699792350,3.2,174.69,174.67,218.01817107]
[1752699793161,5.7222,174.68,174.67,218.01817107]
[1752699793355,8.9222,174.68,174.67,218.01817107]
[1752699794360,8.9222,174.68,174.67,3.25]
[1752699795359,3.2,174.68,174.67,3.25]
[1752699795560,5.722,174.69,174.68,3.25]
[1752699796057,3.2,174.71,174.68,173.74]
[1752699796255,3.2,174.71,174.7,3.25]
[1752699796449,8.9213,174.71,174.7,3.25]
[1752699797659,8.9216,174.7,174.69,7.37473414]
[1752699802058,5.7216,174.7,174.69,7.37473414]
[1752699802570,8.9216,174.7,174.69,7.37473414]
[1752699804067,8.9216,174.7,174.69,3.25]
[1752699806369,28.39213597,174.77,174.69,3.25]
[1752699806370,3.2,174.76,174.69,3.25]
[1752699806569,3.2,174.76,174.73,7.37473414]
[1752699807173,8.9203,174.74,174.73,7.37473414]
[1752699807875,3.2,174.74,174.73,7.37473414]
[1752699808872,8.9203,174.74,174.73,7.37473414]
[1752699809176,8.9203,174.74,174.73,3.25]
[1752699809373,8.9203,174.74,174.73,7.37473414]
[1752699811270,12.82870183,174.79,174.71,4.12473414]
[1752699811472,16.02870183,174.75,174.69,4.12473414]
[1752699811660,16.02870183,174.75,174.66,214.65403101]
[1752699811661,3.2,174.74,174.67,177.62473414]
[1752699811860,12.82870183,174.74,174.67,177.62473414]
[1752699812168,4.12473414,174.76,174.67,177.62473414]
[1752699812169,12.82870183,174.75,174.67,180.87473414]
[1752699812369,12.82870183,174.75,174.69,4.12473414]
[1752699812877,3.2,174.74,174.69,7.37473414]
[1752699813167,3.2,174.74,174.7,3.18]
[1752699813374,3.2,174.74,174.72,3.18]
[1752699813579,5.7209,174.72,174.71,4.12473414]
[1752699813768,8.8409,174.72,174.71,7.30473414]
[1752699813971,3.12,174.72,174.71,7.30473414]
[1752699814669,8.8409,174.72,174.71,7.30473414]
[1752699815772,8.8409,174.72,174.71,3.18]
[1752699815972,5.7213,174.71,174.7,4.12473414]
[1752699816172,8.8413,174.71,174.7,7.30473414]
[1752699817175,8.8413,174.71,174.7,4.12473414]
[1752699817375,8.842,174.69,174.68,4.12473414]
[1752699817778,8.842,174.69,174.68,7.30473414]
[1752699818479,3.12,174.69,174.68,7.30473414]
[1752699818670,8.8417,174.7,174.69,3.18]
[1752699820680,8.8417,174.7,174.69,7.30473414]
[1752699823185,8.8417,174.7,174.69,3.18]
[1752699826279,8.842,174.69,174.68,7.30473414]
[1752699826579,5.7226,174.67,174.66,388.07403101]
[1752699826780,8.8426,174.67,174.66,221.95876515]
[1752699827178,8.8426,174.67,174.66,217.83403101]
[1752699828186,3.12,174.67,174.66,217.83403101]
[1752699828580,5.7224,174.68,174.66,221.95876515]
[1752699828778,8.8424,174.68,174.67,3.18]
[1752699830184,3.12,174.67,174.65,0.03798557]
[1752699830688,5.723,174.66,174.65,0.03798557]
[1752699830885,3.12,174.66,174.62,176.38]
[1752699831087,3.12,174.65,174.6,180.50473414]
[1752699831291,3.12,174.65,174.6,176.38]
[1752699831490,8.8446,174.61,174.6,173.2]
[1752699831693,8.8446,174.61,174.6,176.38]
[1752699831891,3.12,174.61,174.6,176.38]
[1752699832194,3.12,174.61,174.6,3.18]
[1752699833085,3.12,174.61,174.6,7.30473414]
[1752699833490,3.12,174.61,174.6,3.18]
[1752699833993,3.12,174.61,174.6,4.12473414]
[1752699834302,3.12,174.61,174.6,3.18]
[1752699834697,3.12,174.61,174.59,4.12473414]
[1752699835198,3.12,174.61,174.58,177.32473414]
[1752699835400,0.03793529,174.62,174.58,177.32473414]
[1752699835401,3.12,174.6,174.59,3.18]
[1752699836405,3.12,174.6,174.59,7.30473414]
[1752699839905,3.12,174.6,174.59,4.12473414]
[1752699840402,3.12,174.6,174.59,7.30473414]
[1752699843108,3.12,174.6,174.59,3.18]
[1752699843310,3.12,174.6,174.59,7.30473414]
[1752699843612,3.12,174.6,174.58,177.32473414]
[1752699843812,3.12,174.6,174.58,180.73473414]
[1752699844006,0.03793529,174.62,174.59,3.41]
[1752699844205,5.76253529,174.62,174.59,3.41]
[1752699844505,3.22,174.61,174.59,3.41]
[1752699845110,8.9446,174.61,174.59,3.41]
[1752699845310,3.22,174.6,174.59,3.41]
[1752699845714,3.22,174.6,174.55,3.41]
[1752699845913,3.22,174.61,174.59,7.53473414]
[1752699846410,3.22,174.61,174.57,3.41]
[1752699846802,5.7252,174.6,174.57,3.41]
[1752699847010,3.22,174.59,174.56,177.22473414]
[1752699847406,3.22,174.58,174.56,177.22473414]
[1752699847603,3.22,174.58,174.55,3.41]
[1752699847905,3.22,174.57,174.55,3.41]
[1752699849004,3.22,174.56,174.54,5.7269]
[1752699849208,3.22,174.56,174.55,4.12473414]
[1752699849409,3.22,174.56,174.53,173.08]
[1752699849618,3.22,174.56,174.55,7.53473414]
[1752699850513,3.22,174.56,174.55,4.12473414]
[1752699850717,3.22,174.56,174.54,3.41]
[1752699850915,3.22,174.56,174.53,180.61473414]
[1752699851110,3.22,174.56,174.53,176.49]
[1752699851311,3.22,174.56,174.53,7.53473414]
[1752699852112,3.22,174.54,174.53,7.53473414]
[1752699852323,3.22,174.54,174.51,3.41]
[1752699852518,3.22,174.53,174.51,3.41]
[1752699853217,0.04296952,174.54,174.52,7.53473414]
[1752699853411,0.04296952,174.54,174.52,4.12473414]
[1752699853622,0.04296952,174.54,174.53,3.41]
[1752699853815,3.22,174.65,174.53,3.41]
[1752699854114,3.22,174.65,174.58,4.12473414]
[1752699854521,5.7249,174.61,174.58,4.12473414]
[1752699854718,3.22,174.6,174.58,7.53473414]
[1752699854922,3.22,174.6,174.58,4.12473414]
[1752699855118,5.725,174.6,174.58,4.16145339]
[1752699855422,3.22,174.59,174.58,0.03671925]
[1752699856121,494.54,174.66,174.58,3.44671925]
[1752699856427,3.22,174.6,174.58,0.03671925]
[1752699857309,5.725,174.6,174.58,0.03671925]
[1752699857518,3.22,174.59,174.58,0.03671925]
[1752699857720,3.22,174.59,174.58,3.44671925]
[1752699858325,3.22,174.59,174.58,4.16145339]
[1752699858917,3.22,174.59,174.58,7.57145339]
[1752699860226,3.22,174.59,174.58,0.03671925]
[1752699862430,3.22,174.59,174.58,3.44671925]
[1752699864430,507.36870183,174.66,174.58,3.44671925]
[1752699864727,3.22,174.65,174.61,3.41]
[1752699865117,3.22,174.65,174.62,3.41]
[1752699865322,3.22,174.65,174.62,7.53473414]
[1752699865520,5.7236,174.64,174.62,7.53473414]
[1752699865723,3.22,174.63,174.62,7.53473414]
[1752699866029,3.22,174.63,174.62,4.12473414]
[1752699866929,12.82870183,174.68,174.62,7.53473414]
[1752699867137,3.22,174.65,174.62,3.41]
[1752699867932,3.22,174.65,174.63,3.41]
[1752699868428,3.22,174.65,174.64,4.12473414]
[1752699868631,5.7223,174.68,174.65,3.41]
[1752699868826,3.22,174.66,174.65,3.41]
[1752699870731,3.22,174.66,174.65,7.53473414]
[1752699875241,8.9429,174.66,174.65,7.53473414]
[1752699875442,3.22,174.66,174.64,0.04203864]
[1752699875741,12.82870183,174.69,174.65,4.12473414]
[1752699876129,3.16,174.68,174.65,4.12473414]
[1752699876529,3.16,174.68,174.64,0.04203864]
[1752699876530,5.7231,174.66,174.64,0.04203864]
[1752699876735,3.16,174.65,174.64,4.16677278]
[1752699877737,3.16,174.65,174.64,7.57677278]
[1752699878336,12.82870183,174.7,174.65,3.41]
[1752699878538,12.82870183,174.72,174.69,7.53473414]
[1752699879044,5.7218,174.7,174.69,7.53473414]
[1752699879233,12.82870183,174.72,174.69,7.5768951]
[1752699879543,160.6949821,174.73,174.7,3.41]
[1752699879842,147.86628027,174.73,174.7,3.41]
[1752699880248,5.7213,174.71,174.69,4.1668951]
[1752699880447,12.82870183,174.7,174.69,0.04216096]
[1752699880753,15.98870183,174.7,174.69,0.04216096]
[1752699881239,21.71030183,174.7,174.69,0.04216096]
[1752699881545,8.8816,174.7,174.69,0.04216096]
[1752699881952,3.16,174.7,174.69,7.5768951]
[1752699882446,8.8816,174.7,174.69,7.5768951]
[1752699887939,8.8816,174.7,174.69,0.04216096]
[1752699888141,8.8816,174.7,174.6,243.12473414]
[1752699888142,3.16,174.7,174.65,7.53473414]
[1752699888444,3.16,174.7,174.59,391.38927232]
[1752699888445,12.82870183,174.68,174.63,3.41]
[1752699888744,5.7243,174.62,174.61,3.41]
[1752699889640,8.8843,174.62,174.61,3.41]
[1752699890541,3.16,174.62,174.6,3.41]
[1752699890850,3.16,174.62,174.61,3.41]
[1752699891346,3.16,174.62,174.59,3.41]
[1752699892343,8.8849,174.6,174.59,3.41]
[1752699893050,5.7249,174.6,174.59,3.41]
[1752699896948,8.8849,174.6,174.59,3.41]
[1752699898447,5.7249,174.6,174.59,3.41]
[1752699899254,8.8849,174.6,174.59,3.41]
[1752699901253,5.7249,174.6,174.59,3.41]
[1752699901746,8.8849,174.6,174.59,3.41]
[1752699903754,5.7264,174.56,174.54,172.56]
[1752699903945,5.7264,174.56,174.55,7.40473414]
[1752699904250,8.8664,174.56,174.55,3.28]
[1752699904459,5.7264,174.56,174.55,7.40473414]
[1752699904855,0.0374509,174.57,174.55,7.40473414]
[1752699904856,5.7634509,174.57,174.56,3.28]
[1752699909858,5.7634509,174.57,174.4,239.0]
[1752699909859,3.14,174.56,174.4,239.0]
[1752699910051,15.96870183,174.55,174.47,4.12473414]
[1752699910251,4.12473414,174.54,174.47,4.12473414]
[1752699910446,3.14,174.53,174.47,4.12473414]
[1752699910657,8.8688,174.48,174.47,3.28]
[1752699911451,3.14,174.46,174.43,7.40473414]
[1752699911651,3.14,174.46,174.43,4.12473414]
[1752699911851,3.14,174.46,174.45,3.28]
[1752699912070,5.7301,174.44,174.43,4.12473414]
[1752699912254,3.14,174.43,174.42,3.28]
[1752699913052,0.03617116,174.44,174.42,7.40473414]
[1752699913255,0.03617116,174.44,174.43,3.28]
[1752699914857,5.76627116,174.44,174.43,3.28]
[1752699915960,0.03617116,174.44,174.43,3.28]
[1752699920261,0.03617116,174.44,174.39,4.12473414]
[1752699920458,3.14,174.42,174.41,3.28]
[1752699921162,3.14,174.43,174.37,392.27733629]
[1752699921466,3.14,174.43,174.4,4.12473414]
[1752699921866,8.8707,174.43,174.41,3.28]
[1752699922069,3.14,174.43,174.41,3.28]
[1752699922360,0.03617116,174.44,174.41,3.28]
[1752699922555,0.03617116,174.44,174.43,3.28]
[1752699923550,0.03617116,174.44,174.37,631.27733629]
[1752699923551,3.14,174.43,174.42,3.28]
[1752699923750,8.8707,174.43,174.42,3.28]
[1752699924657,5.731,174.42,174.4,4.12473414]
[1752699924857,8.871,174.42,174.41,3.28]
[1752699925265,5.7305,174.43,174.41,3.28]
[1752699925456,0.03617116,174.44,174.41,3.28]
[1752699925661,3.17617116,174.44,174.41,3.28]
[1752699925860,3.14,174.42,174.41,3.28]
[1752699926865,8.8708,174.42,174.41,3.28]
[1752699927259,0.03617116,174.44,174.39,3.28]
[1752699927459,5.7316,174.4,174.39,3.28]
[1752699927971,5.7318,174.39,174.38,217.3335847]
[1752699928163,0.03617116,174.44,174.38,217.3335847]
[1752699928460,5.7317,174.4,174.39,3.28]
[1752699928666,3.14,174.42,174.38,3.28]
[1752699929063,5.7317,174.4,174.38,3.28]
[1752699929267,3.14,174.42,174.37,4.12473414]
[1752699929671,8.8714,174.4,174.39,3.28]